Cogmind - Beta 13 @@@ ROGUE MODE // 2024.04.09 @ 14:53:34 Player: Phosphophyllite Result: Destroyed by S-27 Virus with Autogun Performance ------------- Evolutions (3) 1500 Regions Visited (4) 800 Robots Destroyed (21) 105 Value Destroyed (616) 616 Prototype IDs (1) 20 Alien Tech Used (0) 0 Bonus (0) 0 TOTAL SCORE: 3041 Bonus ------- None Cogmind --------- Core Integrity 0/700 Matter 205/300 Energy 100/100 System Corruption 6% Temperature Cool (0) Movement Core (50) Location -7/Factory Parts ------- > --- POWER (1) -------- (None) > --- PROPULSION (2) --- (None) > --- UTILITY (8) ------ (None) > --- WEAPON (2) ------- (None) > --- INVENTORY (5) ---- Armored Wheel Improved Sensor Array Advanced ECM Suite Mini Grenade Launcher Datajack Peak State ------------ > --- POWER ------------ Light Ion Engine > --- PROPULSION ------- Improved Flight Unit > --- UTILITY ---------- Improved Terrain Scanner Advanced Terrain Scan Processor Transmission Jammer > --- WEAPON ----------- (None) > --- INVENTORY -------- Ion Engine Armored Wheel Advanced ECM Suite EM Pulse Gun Mini Grenade Launcher [Rating: 16] Favorites ----------- Power Light Ion Engine Engine Light Ion Engine Propulsion Light Treads Treads Light Treads Wheel Wheel Flight Unit Improved Flight Unit Utility Transmission Jammer Device Transmission Jammer Storage Medium Storage Unit Processor Advanced Terrain Scan Processor Protection Light Armor Plating Weapon Small Laser Energy Gun Small Laser Ballistic Gun Assault Rifle Launcher Rocket Launcher Special Weapon Mining Laser Build | -11 -10 -9 -8 -7 ------- Run | Yrd Mat Mat Mat Fac Slots Evolved 6 | . . 2 2 2 Power . | . . . . . Propulsion . | . . . . . Utility 6 | . . 2 2 2 Weapon . | . . . . . Parts Attached 33 | 7 2 8 9 7 Power 4 | 1 . 1 1 1 Engine 4 | 1 . 1 1 1 Core . | . . . . . Reactor . | . . . . . Propulsion 6 | 2 . . 3 1 Treads 2 | 2 . . . . Leg . | . . . . . Wheel 2 | . . . 2 . Hover . | . . . . . Flight 2 | . . . 1 1 Utility 13 | 2 2 4 1 4 Device 8 | 1 1 2 1 3 Storage 2 | 1 1 . . . Processor 2 | . . 1 . 1 Hackware . | . . . . . Protection 1 | . . 1 . . Artifact . | . . . . . Weapon 10 | 2 . 3 4 1 Energy Gun 4 | 1 . 1 1 1 Energy Cannon . | . . . . . Ballistic Gun 1 | 1 . . . . Ballistic Cannon . | . . . . . Launcher 4 | . . 2 2 . Special Weapon 1 | . . . 1 . Impact Weapon . | . . . . . Slashing Weapon . | . . . . . Piercing Weapon . | . . . . . Special Melee Weapon . | . . . . . Unidentified Prototypes 1 | . . . 1 . Parts Lost 16 | . . 5 7 4 Power 3 | . . 1 . 2 Propulsion 4 | . . . 3 1 Utility 6 | . . 4 1 1 Weapon 3 | . . . 3 . Highest Loss Streak 4 | . . 4 3 2 To Critical Strikes . | . . . . . Average Slot Usage (%) 51 | . 100 93 42 27 Engine 8 | . 14 10 9 6 Treads 8 | . 28 22 4 . Flight 4 | . . . 4 6 Device 8 | . 14 17 2 5 Storage 4 | . 14 11 4 . Processor 2 | . . 8 . 2 Energy Gun 8 | . 14 13 7 5 Ballistic Gun 3 | . 14 7 . . Naked Turns 35 | . . . . 35 Heaviest Build 25 | 13 18 25 24 5 Greatest Support 40 | 40 40 40 40 5 Greatest Overweight (x) 2 | 2 . . 1 1 Average Overweight (x) . | . . . . . Largest Inventory Capacity 10 | 8 10 10 10 5 Average Capacity 6 | 7 8 10 7 5 Most Carried 9 | 8 9 9 9 5 Average Carried 6 | 6 8 8 5 4 Final Capacity 10 | 8 10 10 5 5 Final Carried 9 | 8 9 7 5 5 Class Distribution -------------------- 100% | Mutant Dominant Class ---------------- Mutant | -10/Materials Mutant | -9/Materials Mutant | -8/Materials Mutant | -7/Factory Resources | -11 -10 -9 -8 -7 ----------- Run | Yrd Mat Mat Mat Fac Matter Collected 553 | 285 53 78 131 6 Remotely . | . . . . . Salvage Created 649 | 110 209 198 132 . Parts 47 | 8 17 14 8 . Haulers Intercepted . | . . . . . Recyclers Shooed 1 | 1 . . . . Parts Field Recycled . | . . . . . Retrieved Matter . | . . . . . Parts Self-Destructed . | . . . . . Prevented . | . . . . . Kills | -11 -10 -9 -8 -7 ------- Run | Yrd Mat Mat Mat Fac Combat Hostiles Destroyed 16 | . 5 7 4 . Guns 4 | . 1 2 1 . AOE 12 | . 4 5 3 . Classes Destroyed 8 | 2 2 2 2 . Worker 1 | . . . 1 . Tunneler 1 | 1 . . . . Recycler 1 | 1 . . . . Watcher 2 | . 1 1 . . Swarmer 3 | . . 3 . . Grunt 11 | . 5 3 3 . Brawler 1 | . . 1 . . Sentry 1 | . . . 1 . Best Kill Streak 5 | 1 5 4 4 . Combat Bots Only 5 | . 5 4 3 . Max Kills in Single Turn 4 | 1 4 3 3 . Gunslinging . | . . . . . Exploded 4 | . 4 3 2 . Melee . | . . . . . Uniques/NPCs Destroyed . | . . . . . Combat | -11 -10 -9 -8 -7 -------- Run | Yrd Mat Mat Mat Fac Hostile Shots Fired 204 | . 33 52 48 71 Missed 69 | . 13 22 14 20 Damage Taken 2313 | . 311 519 618 865 Core 1062 | . 90 23 240 709 Absorbed by Shields . | . . . . . Regen/Repaired (Parts) 33 | . . . . 33 Core Remaining (%) 78 | 100 64 94 56 . Volleys Fired 35 | 5 11 10 9 . Largest 2 | 2 2 2 2 . Hottest 80 | 60 60 80 70 . Shots Fired 63 | 10 22 19 12 . Gun 52 | 10 22 15 5 . Cannon . | . . . . . Launcher 11 | . . 4 7 . Special . | . . . . . Kinetic 18 | 5 11 2 . . Thermal 5 | . . . 5 . Explosive 11 | . . 4 7 . Electromagnetic 29 | 5 11 13 . . Robot Hit Streak 7 | 1 5 7 3 . Robot Miss Streak 4 | 4 4 1 4 . Penetration Max . | . . . . . Secondary Targets . | . . . . . Shots Hit Robots 30 | 3 10 11 6 . Core Hits 27 | 2 7 10 8 . Critical Kills . | . . . . . Critical Parts Destroyed . | . . . . . Critical Strikes 1 | . 1 . . . Corrupt 1 | . 1 . . . Melee Attacks . | . . . . . Impact . | . . . . . Slashing . | . . . . . Piercing . | . . . . . Sneak Attacks . | . . . . . Combat Hostiles . | . . . . . Follow-up Attacks . | . . . . . Damage Inflicted 1409 | 41 371 515 482 . Guns 342 | 41 133 135 33 . Cannons . | . . . . . Explosions 1067 | . 238 380 449 . Melee . | . . . . . Ramming . | . . . . . Kinetic 39 | 26 13 . . . Thermal 271 | . 238 . 33 . Explosive 829 | . . 380 449 . Electromagnetic 270 | 15 120 135 . . Impact . | . . . . . Slashing . | . . . . . Piercing . | . . . . . Highest Corruption 10 | . . 10 . 6 Average Corruption 4 | . . 6 . 2 Corruption Purged . | . . . . . Corruption Blocked . | . . . . . Effects 5 | . . 5 . . Matter Fused 2 | . . 2 . . Energy Discharges 1 | . . 1 . . Data Loss (minor) 1 | . . 1 . . Weapon Failures 1 | . . 1 . . Overload Shots . | . . . . . Overflow Damage 15 | . . . 15 . Projectiles . | . . . . . Explosions 15 | . . . 15 . Melee . | . . . . . Knockbacks . | . . . . . Impact . | . . . . . Kinetic . | . . . . . Secondary . | . . . . . Self-Inflicted Damage 199 | . 43 115 41 . Shots 5 | . 1 3 1 . Rammed . | . . . . . Targets Rammed . | . . . . . Kicked . | . . . . . Crushed . | . . . . . Highest Temperature 51 | . 36 18 51 . Average Temperature 16 | . 21 7 18 . Received Heat Transfer 624 | . 162 108 306 48 Siege Activations . | . . . . . Robots Corrupted . | . . . . . Combat Hostiles . | . . . . . Parts Fried . | . . . . . Impact Corruptions . | . . . . . Robots Melted . | . . . . . Combat Hostiles . | . . . . . Parts Melted . | . . . . . Heat Transferred 175 | . 100 . 75 . Parts Sabotaged . | . . . . . Parts Stolen . | . . . . . Parts Stripped . | . . . . . Power Chain Reactions 1 | . 1 . . . Alert | -11 -10 -9 -8 -7 ------- Run | Yrd Mat Mat Mat Fac Peak Influence 199 | 10 177 199 169 140 Initial 81 | . 6 74 81 76 Average 56 | 5 44 102 84 44 Maximum Alert Level . | . . . . . Low Security (%) 100 | 100 100 100 100 100 Level 1 . | . . . . . Level 2 . | . . . . . Level 3 . | . . . . . Level 4 . | . . . . . Level 5 . | . . . . . High Security . | . . . . . Max Security . | . . . . . Squads Dispatched 5 | . 1 1 1 2 Investigation 3 | . 1 1 1 . Extermination 1 | . . . . 1 Reinforcement 1 | . . . . 1 Assault . | . . . . . Garrison . | . . . . . Intercept . | . . . . . Searches Triggered . | . . . . . Construction Impeded . | . . . . . Haulers Reinforced . | . . . . . Active Scanning Responses . | . . . . . Cargo Convoy Interrupts . | . . . . . Stealth | -11 -10 -9 -8 -7 --------- Run | Yrd Mat Mat Mat Fac Distress Signals 4 | . . 1 3 . Communications Jammed . | . . . . . Distress Signals . | . . . . . Times Spotted 65 | . 15 15 17 18 Peak Tracking Total 12 | . 7 8 12 7 Tactical Retreats 6 | . . 1 2 3 Traps | -11 -10 -9 -8 -7 ------- Run | Yrd Mat Mat Mat Fac Traps Triggered 1 | . . . . 1 Indirectly . | . . . . . Trap Hack Attempts . | . . . . . Triggered . | . . . . . Disarmed . | . . . . . Reprogrammed . | . . . . . Reused . | . . . . . Traps Extracted . | . . . . . Installed . | . . . . . Triggered . | . . . . . Machines | -11 -10 -9 -8 -7 ---------- Run | Yrd Mat Mat Mat Fac Machines Disabled 3 | . 1 2 . . Max in Single Turn 1 | . 1 1 . . Machines Repaired . | . . . . . Machines Dismantled . | . . . . . Machines Sabotaged . | . . . . . Overloaded Fab Kills . | . . . . . Hacking | -11 -10 -9 -8 -7 --------- Run | Yrd Mat Mat Mat Fac Machines Accessed 12 | . 2 3 4 3 Terminals 11 | . 2 3 4 2 Fabricators . | . . . . . Repair Stations 1 | . . . . 1 Recycling Units . | . . . . . Scanalyzers . | . . . . . Garrison Access . | . . . . . Total Hacks 38 | . 7 9 16 6 Successful 13 | . 1 2 6 4 Failed 25 | . 6 7 10 2 Catastrophic 7 | . . 4 2 1 Database Lockouts . | . . . . . Manual 33 | . 7 9 15 2 Terminals 36 | . 7 9 16 4 Fabricators . | . . . . . Repair Stations 2 | . . . . 2 Recycling Units . | . . . . . Scanalyzers . | . . . . . Garrison Access . | . . . . . Terminal Hacks 7 | . . 2 3 2 Record 2 | . . . 1 1 Alert Level 1 | . . 1 . . Unreport Threat 4 | . . 1 2 1 Fabricator Hacks . | . . . . . Repair Station Hacks 2 | . . . . 2 Scan Component 1 | . . . . 1 Repair 1 | . . . . 1 Recycling Unit Hacks . | . . . . . Scanalyzer . | . . . . . Garrison Access Hacks . | . . . . . Unauthorized Hacks 4 | . 1 . 3 . Terminals 4 | . 1 . 3 . Assimilate 1 | . 1 . . . Botnet 3 | . . . 3 . Fabricators . | . . . . . Repair Stations . | . . . . . Recycling Units . | . . . . . Scanalyzers . | . . . . . Garrison Access . | . . . . . Data Cores Recovered . | . . . . . Used . | . . . . . Hacking Detections 10 | . 2 3 3 2 Full Trace Events 5 | . 1 3 1 . Feedback Events 1 | . . 1 . . Corruption 1 | . . 1 . . Feedback Blocked . | . . . . . Robot Schematics Acquired . | . . . . . Robots Built . | . . . . . Authchips . | . . . . . Time . | . . . . . Total Robot Build Rating . | . . . . . Part Schematics Acquired . | . . . . . Parts Built . | . . . . . Authchips . | . . . . . Time . | . . . . . Total Part Build Rating . | . . . . . Parts Repaired 1 | . . . . 1 Time 51 | . . . . 51 Parts Recycled . | . . . . . Recycled Matter . | . . . . . Retrieved Matter . | . . . . . Retrieved Components . | . . . . . Parts Scanalyzed . | . . . . . Part Schematics Acquired . | . . . . . Parts Damaged . | . . . . . Bothacking | -11 -10 -9 -8 -7 ------------ Run | Yrd Mat Mat Mat Fac Used RIF Installer . | . . . . . Robots Hacked . | . . . . . Non-combat . | . . . . . Combat . | . . . . . Robot Hacks Applied . | . . . . . Relay Couplers Released . | . . . . . Fabnet Peak Effective % . | . . . . . Robots Rewired . | . . . . . Allies Hacked . | . . . . . Hacks Repelled . | . . . . . Allies | -11 -10 -9 -8 -7 -------- Run | Yrd Mat Mat Mat Fac Total Allies . | . . . . . Largest Group . | . . . . . Highest-Rated Group . | . . . . . Highest-Rated Ally . | . . . . . Total Orders . | . . . . . Ally Attacks . | . . . . . Total Damage . | . . . . . Kills . | . . . . . Allies Corrupted . | . . . . . Allies Melted . | . . . . . Intel | -11 -10 -9 -8 -7 ------- Run | Yrd Mat Mat Mat Fac Robot Analysis Total . | . . . . . Derelict Logs Recovered . | . . . . . Drone Launches . | . . . . . Drone Recoveries . | . . . . . Exploration | -11 -10 -9 -8 -7 ------------- Run | Yrd Mat Mat Mat Fac Turns Passed 2281 | 134 330 353 307 1157 Spaces Moved 2218 | 72 175 181 300 1490 Core 78 | 23 . . . 55 Treads 451 | 49 175 181 46 . Legs . | . . . . . Wheels 19 | . . . 19 . Hover . | . . . . . Flight 1670 | . . . 235 1435 Fastest Speed 40 | 50 160 160 40 40 Average Speed 68 | 136 160 160 83 40 Slowest Speed 240 | 160 160 160 240 100 Overloaded Moves . | . . . . . Propulsion Burnouts . | . . . . . Robots Hopped 2 | . . . . 2 Cave-ins Triggered . | . . . . . Exploration Rate (%) 22 | 5 23 22 24 36 Regions Visited 4 Branch Regions . Pre-discovered Areas . | . . . . . Known Exits Taken . | . . . . . Unknown Exits Taken 4 | 1 1 1 1 . Scrap Searched . | . . . . . Spaces Dug . | . . . . . Terrain Destroyed 137 | . 7 79 51 . Melee . | . . . . . Projectile . | . . . . . AOE 137 | . 7 79 51 . Terrain Rammed . | . . . . . Walls Destroyed . | . . . . . Machines Disabled . | . . . . . Actions | -11 -10 -9 -8 -7 --------- Run | Yrd Mat Mat Mat Fac Total 2911 | 98 205 223 344 2041 Wait 567 | . 10 22 15 520 Move 2210 | 71 174 180 299 1486 Hop 2 | . . . . 2 Pick Up 29 | 15 4 3 5 2 Fast Attach 5 | . . . 1 4 Attach 20 | 7 . 5 5 3 Detach 4 | . . . 2 2 Swap 8 | . 2 3 3 . Drop 13 | . 4 . 5 4 Fire 35 | 5 11 10 9 . Melee . | . . . . . Ram . | . . . . . Kick . | . . . . . Crush . | . . . . . Escape Stasis 18 | . . . . 18 Rewire . | . . . . . Trap . | . . . . . Miscellaneous . | . . . . . Route ------- -11/Scrapyard -10/Materials (discovered 2 exits: *Mat x2) -9/Materials -8/Materials -7/Factory History --------- Turn | Location | Event 17 | -11/Scrapyard | Discovered new exit (range 14) 135 | -11/Scrapyard | Entered Materials 308 | -10/Materials | Build established: Mutant 354 | -10/Materials | Discovered new exit (range 16) 451 | -10/Materials | Discovered new exit (range 8) 465 | -10/Materials | Entered another Materials area 465 | -9/Materials | Evolved 2 slots: Utility x2 733 | -9/Materials | System corruption reached 10% 763 | -9/Materials | Lost 4 parts (1p3u) 796 | -9/Materials | Discovered new exit (range 10) 818 | -9/Materials | Entered another Materials area 818 | -8/Materials | Evolved 2 slots: Utility x2 911 | -8/Materials | Lost 3 parts (1n1u1w) 980 | -8/Materials | Lost 3 parts (2n1w) 1123 | -8/Materials | Discovered new exit (range 6) 1125 | -8/Materials | Entered Factory 1125 | -7/Factory | Evolved 2 slots: Utility x2 1440 | -7/Factory | Repaired Imp. Flight Unit 2271 | -7/Factory | Core integrity fell below 50% 2279 | -7/Factory | Core integrity fell below 20% 2282 | -7/Factory | Destroyed by S-27 Virus with Autogun Last Messages --------------- 01838_ Acquired Adv. Terrain Scan Processor. 01959_ ALERT: Rogue bot located, Programmers report to Factory Zone 9U. 02001_ Dropped Sml. Laser. 02002_ Acquired Imp. Terrain Scanner. [Achievement: Omniscient Cartographer] 02016_ Dropped EM Pulse Gun. 02017_ Acquired Datajack. 02082_ Connecting with Terminal... 02124_ Imp. Terrain Scanner destroyed. 02137_ Lgt. Ion Engine destroyed. 02173_ Discarded Adv. Terrain Scan Processor. 02174_ Dropped Transmission Jammer. 02224_ Acquired Imp. Sensor Array. 02240_ T-07 Excavator is excavating. 02240_ Penetrated by Slug. 02240_ Imp. Flight Unit destroyed. 02244_ T-07 Excavator is excavating. 02247_ Ion Engine destroyed. 02248_ T-07 Excavator is excavating. 02251_ Acquired 6 matter. Map ----- +----------------------------------------------------+ | ????????????????????????????????????????? | | ????????????????????????????????????????? | | ????????????????????????????????????????? | | ????????????????????????????????????????? | | ????????????????????????????????????????? | | ????????????????????????????????????????? | | ????????????????????????????????????????? | | ????????????????????????????????????????? | | ????????????????????????????????????????? | | ????????????????????????????????????????? | | ????????????????????????????????????????? | | ????????????????????????????????????????? | | ????????????????????????????????????????? | | ????????????????????????????????????????? | | ????????????????????#####??????????????## | | ???????????????? ? #??????????????# | | ??????????????? #??????????????# | | ????????????? #??????????????# | | ??????????#? === #??????????????# | | ???????????Y === #??????????????# | | ???????????# === #??????????????# | | ???????????# [ #??????????????# | | ???????????# """"" #??????????????# | | ???????????# """"" #??????????????## | | ???????????# """ ss #???????????????? | | ???????????# @ s ] #???????????????? | | ???????????# ! ! s #???????????????? | | ???##??????#######/###################+## | | ??? ????????# p | | ??# ??????# | | ??# ! ????# | | ??# ??# ####### | | ??# # #?????? | | ??# + +?????? | | ??# # ######?????? | | ??# ??# #??????????? | | ??# ????######+########?????????? | | ??# ??????????????????????????????? | | ??? ???????????????????????????????? | | ??? ?????????????????????????????????? | | ??????????????????????????????????????### | | ????????????????????????????????????????? | | ????????????????????????????????????????? | | | | | | | | | | | | | | | +----------------------------------------------------+ Best States ------------- Heat Dissipation 34 Energy Generation 10 Energy Capacity 250 Matter Stores 300 Matter Capacity 300 Sight Range 16 Robot Scan Range 14 Terrain Scan Range 16 Terrain Scan Density 210 ECM Strength 2 Jamming Range 12 Armor Coverage 150 Evasion (%) 62 Recoil Reduction 2 Item Schematics ----------------- None Robot Schematics ------------------ None Fabricated ------------ Nothing Alien Tech Used ----------------- None Achievements -------------- Omniscient Cartographer Challenges ------------ None Game ------ Seed SubdwellerGhostKit Manual? 0 Play Time 00:35:38 Cumulative 14.8 hours Start 2024.04.09 @ 14:20:12 End 2024.04.09 @ 14:53:34 Sessions 1 Manual Loads 0 Difficulty Rogue Special Mode None Game No. 24 Rogue 24 Adventurer 0 Explorer 0 Win Type - Total 0 Types 0/0/0/0/0/0/0/0/0 Lore% 17 Gallery% 23 Achievement% 16 Wizard Run 0 Options --------- Layout 0 ASCII 0 Keyboard 0 Movement Mouse Keybinds 0 Fullscreen 1 Font 24/Smallcaps Map View 76x50 Zoom Use 0% Tactical HUD 1 Map Filters NONE Filters NONE Steam 1 RUN: cfe748b3-eb46-4b00-b68b-597267f26aab